Workbook

Sheet 收盤行情
A1: 報價日期 : 2011/7/24下午 02:00:00
A3: 代號 | B3: 名稱 | C3: 漲跌 | E3: 收盤 | F3: 開盤 | G3: 最高 | H3: 最低 | I3: 總量
A4: 15 | B4: 富 邦 | C4: ▲ | D4: 0.04 | E4: 8.24 | F4: 8.2 | G4: 8.25 | H4: 8.2 | I4: 538
A5: 50 | B5: 台灣50 | C5: ▲ | D5: 0.4 | E5: 61 | F5: 60.85 | G5: 61.15 | H5: 60.8 | I5: 22648
A6: 51 | B6: 中100 | C6: ▲ | D6: 0.5 | E6: 32.4 | F6: 32.14 | G6: 32.41 | H6: 32.14 | I6: 186
A7: 52 | B7: 富邦IT | C7: ▲ | D7: 0.6 | E7: 33.87 | F7: 33.5 | G7: 33.87 | H7: 33.5 | I7: 4
A8: 53 | B8: 寶電子 | C8: ▲ | D8: 0.07 | E8: 25.47 | F8: 25.7 | G8: 25.7 | H8: 25.46 | I8: 30
A9: 54 | B9: 台商50 | C9: ▲ | D9: 0.18 | E9: 22.69 | F9: 22.51 | G9: 22.81 | H9: 22.51 | I9: 54
A10: 55 | B10: 寶金融 | C10: ▲ | D10: 0.16 | E10: 14.69 | F10: 14.55 | G10: 14.7 | H10: 14.51 | I10: 3254
A11: 56 | B11: 高股息 | C11: ▲ | D11: 0.3 | E11: 28.5 | F11: 28.28 | G11: 28.6 | H11: 28.28 | I11: 254
A12: 57 | B12: FB摩台 | C12: ▲ | D12: 0.25 | E12: 33.82 | F12: 33.8 | G12: 33.89 | H12: 33.76 | I12: 354
A13: 58 | B13: FB發達 | C13: ▲ | D13: 0.12 | E13: 37.57 | F13: 37.55 | G13: 37.57 | H13: 37.55 | I13: 4
A14: 59 | B14: FB金融 | C14: ▲ | D14: 0.21 | E14: 32.21 | F14: 32.1 | G14: 32.22 | H14: 31.96 | I14: 46
A15: 60 | B15: 新台灣 | C15: ▲ | D15: 0.01 | E15: 35.16 | F15: 35.07 | G15: 35.26 | H15: 35.07 | I15: 53
A16: 61 | B16: 寶滬深 | C16: ▲ | D16: 0.15 | E16: 17.76 | F16: 17.61 | G16: 17.78 | H16: 17.56 | I16: 5911
A17: 80 | B17: 恒中國 | C17: ▼ | D17: -448 | E17: 0 | F17: 0 | G17: 0 | H17: 0 | I17: 0
A18: 81 | B18: 恒香港 | C18: ▼ | D18: -810 | E18: 0 | F18: 0 | G18: 0 | H18: 0 | I18: 0
A19: 1000 | B19: 加 權 | C19: ▲ | D19: 48.179 | E19: 8765.319 | F19: 8770.95 | G19: 8794.479 | H19: 8741.09 | I19: 4993923
A20: 1001 | B20: 不含金 | C20: ▲ | D20: 37.62 | E20: 7354.28 | F20: 7364.18 | G20: 7379.27 | H20: 7342.51 | I20: 0
A21: 1002 | B21: 水泥類 | C21: ▲ | D21: 14.15 | E21: 696.49 | F21: 682.9 | G21: 711.11 | H21: 680.39 | I21: 0
A22: 1003 | B22: 食品類 | C22: ▲ | D22: 23.47 | E22: 1037.31 | F22: 1020.26 | G22: 1041.62 | H22: 1020.06 | I22: 0
A23: 1004 | B23: 塑化類 | C23: ▲ | D23: 10.99 | E23: 1025.65 | F23: 1018.75 | G23: 1025.79 | H23: 1017.01 | I23: 0
A24: 1005 | B24: 紡織類 | C24: ▲ | D24: 2.32 | E24: 501.06 | F24: 499.62 | G24: 505.04 | H24: 498.82 | I24: 0
A25: 1006 | B25: 機電類 | C25: ▲ | D25: 3.38 | E25: 1749.68 | F25: 1761.6 | G25: 1763.01 | H25: 1749.63 | I25: 0
A26: 1007 | B26: 造紙類 | C26: ▲ | D26: 0.82 | E26: 201.7 | F26: 201.87 | G26: 202.89 | H26: 201.33 | I26: 0
A27: 1008 | B27: 營建類 | C27: ▲ | D27: 4.64 | E27: 361.54 | F27: 359.9 | G27: 362.76 | H27: 359.64 | I27: 0
A28: 1009 | B28: 金融類 | C28: ▲ | D28: 8.34 | E28: 1056.88 | F28: 1052.9 | G28: 1060.18 | H28: 1046.25 | I28: 0
A29: 1010 | B29: 不含電 | C29: ▲ | D29: 131.519 | E29: 14153.279 | F29: 14074.25 | G29: 14175.109 | H29: 14042.84 | I29: 0
A30: 1011 | B30: 水 泥 | C30: ▲ | D30: 6 | E30: 157.89 | F30: 152.76 | G30: 161.54 | H30: 152.64 | I30: 56561
A31: 1012 | B31: 食 品 | C31: ▲ | D31: 23.47 | E31: 1037.31 | F31: 1020.26 | G31: 1041.62 | H31: 1020.06 | I31: 119671
A32: 1013 | B32: 塑 膠 | C32: ▲ | D32: 4.12 | E32: 302.15 | F32: 298.75 | G32: 302.15 | H32: 298.08 | I32: 103223
A33: 1014 | B33: 紡 織 | C33: ▲ | D33: 2.32 | E33: 501.06 | F33: 499.62 | G33: 505.04 | H33: 498.82 | I33: 129335
A34: 1015 | B34: 電 機 | C34: ▲ | D34: 2.7 | E34: 132.81 | F34: 131.3 | G34: 133.16 | H34: 130.29 | I34: 56246
A35: 1016 | B35: 電 器 | C35: ▲ | D35: 0.08 | E35: 53.75 | F35: 53.99 | G35: 54.18 | H35: 53.46 | I35: 31985
A36: 1017 | B36: 化生醫 | C36: ▲ | D36: 1.25 | E36: 139.32 | F36: 139.17 | G36: 139.96 | H36: 138.78 | I36: 101443
A37: 1018 | B37: 玻 璃 | C37: ▼ | D37: -3.38 | E37: 107.47 | F37: 109.44 | G37: 109.53 | H37: 105.93 | I37: 23081
A38: 1019 | B38: 造 紙 | C38: ▲ | D38: 0.82 | E38: 201.7 | F38: 201.87 | G38: 202.89 | H38: 201.33 | I38: 28106
A39: 1020 | B39: 鋼 鐵 | C39: ▼ | D39: -1.1 | E39: 113.09 | F39: 114.26 | G39: 114.26 | H39: 112.94 | I39: 118881
A40: 1021 | B40: 橡 膠 | C40: ▼ | D40: -1.46 | E40: 328.71 | F40: 332.79 | G40: 332.79 | H40: 328.68 | I40: 60115
A41: 1022 | B41: 汽 車 | C41: ▲ | D41: 3.81 | E41: 206.16 | F41: 204.42 | G41: 206.32 | H41: 202.21 | I41: 61390
A42: 1023 | B42: 電 子 | C42: ▲ | D42: 0.43 | E42: 309.62 | F42: 311.9 | G42: 312.14 | H42: 309.62 | I42: 1399037
A43: 1025 | B43: 營 造 | C43: ▲ | D43: 4.64 | E43: 361.54 | F43: 359.9 | G43: 362.76 | H43: 359.64 | I43: 187209
A44: 1026 | B44: 運 輸 | C44: ▼ | D44: -0.16 | E44: 100.67 | F44: 101.03 | G44: 101.31 | H44: 100.22 | I44: 107080
A45: 1027 | B45: 觀 光 | C45: ▲ | D45: 0.78 | E45: 152.84 | F45: 152.46 | G45: 153.81 | H45: 152.46 | I45: 5433
A46: 1028 | B46: 金 融 | C46: ▲ | D46: 8.34 | E46: 1056.88 | F46: 1052.9 | G46: 1060.18 | H46: 1046.25 | I46: 538405
A47: 1029 | B47: 百 貨 | C47: ▼ | D47: -0.09 | E47: 263.46 | F47: 266.74 | G47: 267.22 | H47: 262.99 | I47: 63540
A48: 1099 | B48: 其 他 | C48: ▲ | D48: 1.22 | E48: 169.55 | F48: 168.15 | G48: 169.94 | H48: 168.15 | I48: 63517
A49: 1101 | B49: 台 泥 | C49: ▲ | D49: 2.1 | E49: 48.4 | F49: 46.4 | G49: 49.45 | H49: 46.4 | I49: 23190
A50: 1102 | B50: 亞 泥 | C50: ▲ | D50: 1.55 | E50: 46.75 | F50: 45.7 | G50: 48.3 | H50: 45.45 | I50: 16682
A51: 1103 | B51: 嘉 泥 | C51: ▲ | D51: 1.3 | E51: 20.3 | F51: 19 | G51: 20.3 | H51: 19 | I51: 11811
A52: 1104 | B52: 環 泥 | C52: ▲ | D52: 0.05 | E52: 18.35 | F52: 18.45 | G52: 18.75 | H52: 18.1 | I52: 2642
A53: 1107 | B53: 建 台 | C53: ▲ | D53: 0.02 | E53: 2.22 | F53: 2.2 | G53: 2.22 | H53: 2.2 | I53: 93
A54: 1108 | B54: 幸 福 | C54: ▲ | D54: 0.11 | E54: 7.31 | F54: 7.2 | G54: 7.39 | H54: 7.17 | I54: 1467
A55: 1109 | B55: 信 大 | C55: ▲ | D55: 0.15 | E55: 11.5 | F55: 11.4 | G55: 11.6 | H55: 11.4 | I55: 276
A56: 1110 | B56: 東 泥 | C56: ▲ | D56: 0.35 | E56: 12.5 | F56: 12.15 | G56: 12.55 | H56: 12.15 | I56: 493
A57: 1201 | B57: 味 全 | C57: ▲ | D57: 0.6 | E57: 37.6 | F57: 37.1 | G57: 38.1 | H57: 37.05 | I57: 20402
A58: 1203 | B58: 味 王 | C58: ▲ | D58: 0.4 | E58: 23.25 | F58: 23 | G58: 23.4 | H58: 22.95 | I58: 268
A59: 1210 | B59: 大 成 | C59: ▲ | D59: 1.2 | E59: 36.4 | F59: 35.3 | G59: 36.8 | H59: 35.3 | I59: 9872
A60: 1213 | B60: 大 飲 | C60: ▲ | D60: 0.2 | E60: 29.9 | F60: 30.2 | G60: 30.3 | H60: 29.85 | I60: 563
A61: 1215 | B61: 卜 蜂 | C61: ▲ | D61: 0.15 | E61: 18.2 | F61: 18.2 | G61: 18.5 | H61: 18.1 | I61: 1706
A62: 1216 | B62: 統 一 | C62: ▲ | D62: 1.05 | E62: 49 | F62: 48.25 | G62: 49.3 | H62: 48.25 | I62: 16686
A63: 1217 | B63: 愛之味 | C63: ▲ | D63: 0.4 | E63: 14 | F63: 13.7 | G63: 14.1 | H63: 13.7 | I63: 14852
A64: 1218 | B64: 泰 山 | C64: ▲ | D64: 1.3 | E64: 20.55 | F64: 19.45 | G64: 20.55 | H64: 19.4 | I64: 24742
A65: 1219 | B65: 福 壽 | C65: ▲ | D65: 0.35 | E65: 16.3 | F65: 15.95 | G65: 16.3 | H65: 15.95 | I65: 709
A66: 1220 | B66: 台 榮 | C66: ▲ | D66: 0.1 | E66: 14.2 | F66: 14.4 | G66: 14.5 | H66: 14.15 | I66: 1501
A67: 1225 | B67: 福懋油 | C67: ▲ | D67: 0.6 | E67: 15.5 | F67: 15.1 | G67: 15.6 | H67: 14.95 | I67: 3974
A68: 1227 | B68: 佳 格 | C68: ▲ | D68: 3.5 | E68: 128 | F68: 126 | G68: 131 | H68: 125.5 | I68: 6211
A69: 1229 | B69: 聯 華 | C69: ▲ | D69: 0.3 | E69: 23.45 | F69: 23.3 | G69: 23.7 | H69: 23.3 | I69: 8352
A70: 1231 | B70: 聯華食 | C70: ▲ | D70: 0.15 | E70: 46.6 | F70: 47.2 | G70: 48 | H70: 46.45 | I70: 2712
A71: 1232 | B71: 大統益 | C71: ▲ | D71: 0.4 | E71: 52.7 | F71: 52.2 | G71: 53 | H71: 52.2 | I71: 166
A72: 1233 | B72: 天 仁 | D72: 0 | E72: 58.5 | F72: 58.5 | G72: 59 | H72: 58.4 | I72: 245
A73: 1234 | B73: 黑 松 | C73: ▲ | D73: 1.4 | E73: 31 | F73: 29.75 | G73: 31.4 | H73: 29.6 | I73: 3436
A74: 1235 | B74: 興 泰 | C74: ▲ | D74: 1.95 | E74: 30 | F74: 28.35 | G74: 30 | H74: 28.3 | I74: 352
A75: 1236 | B75: 宏 亞 | C75: ▲ | D75: 0.6 | E75: 24.5 | F75: 23.5 | G75: 24.85 | H75: 23.5 | I75: 329
A76: 1301 | B76: 臺 塑 | C76: ▲ | D76: 2 | E76: 111 | F76: 110 | G76: 111 | H76: 109.5 | I76: 7011
A77: 1303 | B77: 南 亞 | C77: ▲ | D77: 0.6 | E77: 81.6 | F77: 81 | G77: 82 | H77: 80.4 | I77: 9411
A78: 1304 | B78: 臺 聚 | C78: ▼ | D78: -0.25 | E78: 38.65 | F78: 39 | G78: 39.2 | H78: 38.65 | I78: 3138
A79: 1305 | B79: 華 夏 | C79: ▲ | D79: 0.25 | E79: 12.65 | F79: 12.5 | G79: 12.75 | H79: 12.5 | I79: 2412
A80: 1307 | B80: 三 芳 | C80: ▲ | D80: 0.2 | E80: 34.1 | F80: 34.1 | G80: 34.25 | H80: 33.9 | I80: 116
A81: 1308 | B81: 亞 聚 | C81: ▲ | D81: 0.6 | E81: 53 | F81: 52.7 | G81: 53.4 | H81: 52.1 | I81: 1739
A82: 1309 | B82: 臺達化 | C82: ▲ | D82: 0.35 | E82: 17.85 | F82: 17.8 | G82: 17.85 | H82: 17.6 | I82: 1662
A83: 1310 | B83: 台 苯 | C83: ▲ | D83: 0.15 | E83: 12.15 | F83: 12.1 | G83: 12.25 | H83: 12 | I83: 1762
A84: 1312 | B84: 國 喬 | C84: ▲ | D84: 0.2 | E84: 20.05 | F84: 20 | G84: 20.3 | H84: 19.75 | I84: 29358
A85: 1313 | B85: 聯 成 | C85: ▲ | D85: 0.1 | E85: 24.6 | F85: 24.65 | G85: 24.65 | H85: 24.4 | I85: 5197
A86: 1314 | B86: 中石化 | C86: ▲ | D86: 1.45 | E86: 39.8 | F86: 38.9 | G86: 39.9 | H86: 38.6 | I86: 26846
A87: 1315 | B87: 達 新 | C87: ▲ | D87: 0.15 | E87: 26.6 | F87: 26.55 | G87: 26.8 | H87: 26.4 | I87: 94
A88: 1316 | B88: 上 曜 | C88: ▲ | D88: 0.25 | E88: 25.45 | F88: 25.2 | G88: 25.45 | H88: 24.95 | I88: 606
A89: 1319 | B89: 東 陽 | C89: ▲ | D89: 1.05 | E89: 39.9 | F89: 39.1 | G89: 40.8 | H89: 39 | I89: 4650
A90: 1321 | B90: 大 洋 | C90: ▲ | D90: 0.1 | E90: 21 | F90: 21.2 | G90: 21.2 | H90: 20.7 | I90: 179
A91: 1323 | B91: 永 裕 | C91: ▲ | D91: 0.4 | E91: 27.3 | F91: 27 | G91: 27.3 | H91: 26.6 | I91: 614
A92: 1324 | B92: 地 球 | C92: ▲ | D92: 0.05 | E92: 16.4 | F92: 16.2 | G92: 16.4 | H92: 16.2 | I92: 78
A93: 1325 | B93: 恆 大 | C93: ▲ | D93: 0.3 | E93: 21.9 | F93: 21.55 | G93: 21.9 | H93: 21.35 | I93: 141
A94: 1326 | B94: 臺 化 | C94: ▲ | D94: 1.5 | E94: 106 | F94: 104 | G94: 106 | H94: 104 | I94: 6000
A95: 1333 | B95: 恩得利 | C95: ▼ | D95: -0.05 | E95: 7.64 | F95: 7.7 | G95: 7.8 | H95: 7.63 | I95: 42
A96: 1336 | B96: 台 翰 | C96: ▲ | D96: 0.2 | E96: 16.85 | F96: 16.75 | G96: 16.85 | H96: 16.5 | I96: 69
A97: 1402 | B97: 遠東新 | C97: ▲ | D97: 0.15 | E97: 44.6 | F97: 44.5 | G97: 45.5 | H97: 44.2 | I97: 34865
A98: 1409 | B98: 新 纖 | C98: ▲ | D98: 0.15 | E98: 13.2 | F98: 13.2 | G98: 13.4 | H98: 13.1 | I98: 14983
A99: 1410 | B99: 南 染 | C99: ▲ | D99: 0.3 | E99: 17.9 | F99: 17.7 | G99: 18.2 | H99: 17.5 | I99: 177
A100: 1413 | B100: 宏 洲 | C100: ▼ | D100: -0.1 | E100: 7.62 | F100: 7.8 | G100: 7.81 | H100: 7.59 | I100: 487
A101: 1414 | B101: 東 和 | C101: ▼ | D101: -0.1 | E101: 13.4 | F101: 13.5 | G101: 13.7 | H101: 13.4 | I101: 2791
A102: 1416 | B102: 廣 豐 | C102: ▲ | D102: 0.15 | E102: 13 | F102: 12.9 | G102: 13.05 | H102: 12.85 | I102: 3053
A103: 1417 | B103: 嘉 裕 | C103: ▲ | D103: 0.35 | E103: 10.75 | F103: 10.6 | G103: 11 | H103: 10.6 | I103: 13867
A104: 1418 | B104: 東 華 | D104: 0 | E104: 9.97 | F104: 10 | G104: 10.05 | H104: 9.95 | I104: 287
A105: 1419 | B105: 新 紡 | C105: ▲ | D105: 0.6 | E105: 42.5 | F105: 42 | G105: 42.7 | H105: 42 | I105: 3257
A106: 1423 | B106: 利 華 | C106: ▲ | D106: 0.3 | E106: 9.46 | F106: 9.18 | G106: 9.55 | H106: 9.16 | I106: 1983
A107: 1432 | B107: 大魯閣 | C107: ▲ | D107: 0.2 | E107: 13.5 | F107: 12.55 | G107: 13.5 | H107: 12.55 | I107: 137
A108: 1434 | B108: 福 懋 | D108: 0 | E108: 34 | F108: 34 | G108: 34.3 | H108: 33.85 | I108: 2222
A109: 1435 | B109: 中 福 | C109: ▲ | D109: 0.12 | E109: 5.16 | F109: 5.05 | G109: 5.2 | H109: 5.05 | I109: 404
A110: 1436 | B110: 福 益 | C110: ▲ | D110: 0.32 | E110: 9.69 | F110: 9.45 | G110: 9.72 | H110: 9.37 | I110: 135
A111: 1437 | B111: 勤 益 | C111: ▲ | D111: 1.05 | E111: 21.05 | F111: 20.4 | G111: 21.4 | H111: 20.3 | I111: 6413
A112: 1438 | B112: 裕 豐 | C112: ▲ | D112: 0.1 | E112: 3.2 | F112: 3.15 | G112: 3.2 | H112: 3.15 | I112: 29
A113: 1439 | B113: 中 和 | C113: ▼ | D113: -0.8 | E113: 31.25 | F113: 32.05 | G113: 32.2 | H113: 31 | I113: 1324
A114: 1440 | B114: 南 紡 | C114: ▲ | D114: 0.3 | E114: 19.4 | F114: 19.1 | G114: 19.6 | H114: 19 | I114: 7854
A115: 1441 | B115: 大 東 | C115: ▼ | D115: -0.35 | E115: 18.45 | F115: 19 | G115: 19 | H115: 18.45 | I115: 1188
A116: 1442 | B116: 名 軒 | C116: ▲ | D116: 1.35 | E116: 31.15 | F116: 29.95 | G116: 31.5 | H116: 29.95 | I116: 4320
A117: 1443 | B117: 立 益 | C117: ▲ | D117: 0.03 | E117: 3.65 | F117: 3.65 | G117: 3.68 | H117: 3.59 | I117: 600
A118: 1444 | B118: 力 麗 | C118: ▲ | D118: 0.2 | E118: 16.75 | F118: 16.65 | G118: 16.8 | H118: 16.6 | I118: 5524
A119: 1445 | B119: 大 宇 | C119: ▲ | D119: 0.01 | E119: 8.43 | F119: 8.42 | G119: 8.47 | H119: 8.4 | I119: 412
A120: 1446 | B120: 宏 和 | C120: ▲ | D120: 0.2 | E120: 23.2 | F120: 23 | G120: 23.2 | H120: 22.75 | I120: 408
A121: 1447 | B121: 力 鵬 | D121: 0 | E121: 15.4 | F121: 15.5 | G121: 15.55 | H121: 15.35 | I121: 4420
A122: 1449 | B122: 佳 和 | C122: ▼ | D122: -0.12 | E122: 3.48 | F122: 3.5 | G122: 3.5 | H122: 3.48 | I122: 120
A123: 1451 | B123: 年 興 | C123: ▼ | D123: -0.25 | E123: 23.7 | F123: 23.8 | G123: 23.9 | H123: 23.7 | I123: 1314
A124: 1452 | B124: 宏 益 | D124: 0 | E124: 13.55 | F124: 13.55 | G124: 13.65 | H124: 13.55 | I124: 427
A125: 1453 | B125: 大 將 | C125: ▼ | D125: -0.05 | E125: 9.4 | F125: 9.44 | G125: 9.48 | H125: 9.4 | I125: 109
A126: 1454 | B126: 台 富 | C126: ▲ | D126: 0.15 | E126: 10.2 | F126: 10.2 | G126: 10.4 | H126: 10.05 | I126: 754
A127: 1455 | B127: 集 盛 | C127: ▼ | D127: -0.25 | E127: 18.55 | F127: 18.8 | G127: 18.9 | H127: 18.45 | I127: 6791
A128: 1456 | B128: 怡 華 | C128: ▼ | D128: -0.05 | E128: 2.9 | F128: 2.9 | G128: 2.9 | H128: 2.9 | I128: 2
A129: 1457 | B129: 宜 進 | C129: ▲ | D129: 0.17 | E129: 10 | F129: 9.88 | G129: 10.1 | H129: 9.8 | I129: 7966
A130: 1459 | B130: 聯 發 | C130: ▲ | D130: 0.55 | E130: 14.15 | F130: 13.7 | G130: 14.2 | H130: 13.65 | I130: 1716
A131: 1460 | B131: 宏 遠 | C131: ▼ | D131: -0.01 | E131: 6.87 | F131: 6.88 | G131: 6.97 | H131: 6.81 | I131: 394
A132: 1463 | B132: 強 盛 | C132: ▲ | D132: 0.45 | E132: 11.25 | F132: 10.85 | G132: 11.25 | H132: 10.8 | I132: 2212
A133: 1464 | B133: 得 力 | C133: ▲ | D133: 0.03 | E133: 9.56 | F133: 9.62 | G133: 9.62 | H133: 9.53 | I133: 158
A134: 1465 | B134: 偉 全 | C134: ▲ | D134: 0.15 | E134: 20.8 | F134: 20.7 | G134: 20.85 | H134: 20.7 | I134: 570
A135: 1466 | B135: 聚 隆 | C135: ▲ | D135: 0.2 | E135: 33.4 | F135: 33.2 | G135: 33.95 | H135: 33.1 | I135: 1401
A136: 1467 | B136: 南 緯 | C136: ▼ | D136: -0.1 | E136: 11.55 | F136: 11.75 | G136: 11.75 | H136: 11.5 | I136: 212
A137: 1468 | B137: 昶 和 | C137: ▲ | D137: 0.15 | E137: 11.25 | F137: 10.9 | G137: 11.25 | H137: 10.9 | I137: 25
A138: 1469 | B138: 理 隆 | C138: ▲ | D138: 0.1 | E138: 11 | F138: 10.9 | G138: 11 | H138: 10.9 | I138: 8
A139: 1470 | B139: 大統染 | C139: ▲ | D139: 0.1 | E139: 12.45 | F139: 12.2 | G139: 12.45 | H139: 12.2 | I139: 5
A140: 1471 | B140: 首 利 | C140: ▲ | D140: 0.9 | E140: 13.8 | F140: 13.1 | G140: 13.8 | H140: 13 | I140: 963
A141: 1472 | B141: 三洋纖 | C141: ▼ | D141: -0.32 | E141: 9.31 | F141: 9.59 | G141: 9.59 | H141: 9.2 | I141: 689
A142: 1473 | B142: 台 南 | C142: ▼ | D142: -0.2 | E142: 41.7 | F142: 42.1 | G142: 42.9 | H142: 41.7 | I142: 1914
A143: 1474 | B143: 弘 裕 | D143: 0 | E143: 11.2 | F143: 11.25 | G143: 11.3 | H143: 11.15 | I143: 310
A144: 1475 | B144: 本 盟 | C144: ▼ | D144: -0.56 | E144: 9.01 | F144: 9.27 | G144: 9.53 | H144: 9.01 | I144: 56
A145: 1476 | B145: 儒 鴻 | C145: ▲ | D145: 0.8 | E145: 53.4 | F145: 52.6 | G145: 53.9 | H145: 52.6 | I145: 1423
A146: 1477 | B146: 聚 陽 | D146: 0 | E146: 72 | F146: 72 | G146: 72.4 | H146: 71.5 | I146: 812
A147: 1503 | B147: 士 電 | C147: ▲ | D147: 0.25 | E147: 36.4 | F147: 36.35 | G147: 36.45 | H147: 36.25 | I147: 425
A148: 1504 | B148: 東 元 | D148: 0 | E148: 20.6 | F148: 20.7 | G148: 20.85 | H148: 20.4 | I148: 16440
A149: 1506 | B149: 正 道 | D149: 0 | E149: 23.8 | F149: 23.8 | G149: 24.2 | H149: 23.75 | I149: 274
A150: 1507 | B150: 永 大 | C150: ▼ | D150: -0.9 | E150: 55.2 | F150: 56.1 | G150: 56.3 | H150: 55.2 | I150: 867
A151: 1512 | B151: 瑞 利 | D151: 0 | E151: 11.3 | F151: 11.3 | G151: 11.45 | H151: 11.1 | I151: 2799
A152: 1513 | B152: 中興電 | D152: 0 | E152: 17.6 | F152: 17.65 | G152: 17.65 | H152: 17.5 | I152: 748
A153: 1514 | B153: 亞 力 | C153: ▲ | D153: 0.2 | E153: 11.35 | F153: 11.15 | G153: 11.35 | H153: 11.1 | I153: 1548
A154: 1515 | B154: 力 山 | C154: ▼ | D154: -0.01 | E154: 5.7 | F154: 5.77 | G154: 5.8 | H154: 5.68 | I154: 428
A155: 1516 | B155: 川 飛 | C155: ▲ | D155: 0.14 | E155: 2.21 | F155: 2.21 | G155: 2.21 | H155: 2.21 | I155: 161
A156: 1517 | B156: 利 奇 | C156: ▲ | D156: 0.15 | E156: 13.3 | F156: 13.25 | G156: 13.4 | H156: 13.15 | I156: 555
A157: 1519 | B157: 華 城 | C157: ▲ | D157: 0.3 | E157: 21.85 | F157: 21.65 | G157: 22.2 | H157: 21.65 | I157: 551
A158: 1521 | B158: 大 億 | C158: ▲ | D158: 1 | E158: 75.2 | F158: 75 | G158: 76.3 | H158: 74.7 | I158: 875
A159: 1522 | B159: 堤維西 | C159: ▲ | D159: 0.05 | E159: 14.3 | F159: 14.25 | G159: 14.35 | H159: 14.15 | I159: 409
A160: 1524 | B160: 耿 鼎 | C160: ▲ | D160: 0.08 | E160: 8.75 | F160: 8.8 | G160: 8.8 | H160: 8.61 | I160: 93
A161: 1525 | B161: 江 申 | C161: ▲ | D161: 0.2 | E161: 63.7 | F161: 63.6 | G161: 64.6 | H161: 62.6 | I161: 555
A162: 1526 | B162: 日 馳 | D162: 0 | E162: 7.56 | F162: 7.56 | G162: 7.71 | H162: 7.56 | I162: 108
A163: 1527 | B163: 鑽 全 | C163: ▼ | D163: -0.1 | E163: 21.15 | F163: 21.3 | G163: 21.3 | H163: 21.1 | I163: 325
A164: 1528 | B164: 恩 德 | C164: ▼ | D164: -0.2 | E164: 19.45 | F164: 19.7 | G164: 19.8 | H164: 19.4 | I164: 681
A165: 1529 | B165: 樂 士 | C165: ▲ | D165: 0.01 | E165: 4.56 | F165: 4.52 | G165: 4.76 | H165: 4.5 | I165: 48
A166: 1530 | B166: 亞 崴 | C166: ▼ | D166: -0.05 | E166: 34.15 | F166: 34.5 | G166: 34.65 | H166: 33.65 | I166: 89
A167: 1531 | B167: 高林股 | C167: ▼ | D167: -0.3 | E167: 34.45 | F167: 35 | G167: 35 | H167: 34.4 | I167: 1521
A168: 1532 | B168: 勤 美 | C168: ▲ | D168: 0.15 | E168: 29 | F168: 29 | G168: 29.25 | H168: 29 | I168: 758
A169: 1533 | B169: 車王電 | C169: ▼ | D169: -0.55 | E169: 30.6 | F169: 31.25 | G169: 31.5 | H169: 30.6 | I169: 1584
A170: 1535 | B170: 中 宇 | C170: ▲ | D170: 1.4 | E170: 66.8 | F170: 65.5 | G170: 66.8 | H170: 65.4 | I170: 830
A171: 1536 | B171: 和 大 | C171: ▲ | D171: 0.3 | E171: 13.8 | F171: 13.45 | G171: 13.9 | H171: 13.35 | I171: 795
A172: 1537 | B172: 廣 隆 | C172: ▲ | D172: 0.9 | E172: 51.9 | F172: 51.2 | G172: 52.4 | H172: 51.2 | I172: 509
A173: 1538 | B173: 正峰新 | C173: ▼ | D173: -0.2 | E173: 32.9 | F173: 33.6 | G173: 33.75 | H173: 32.8 | I173: 912
A174: 1539 | B174: 巨 庭 | C174: ▼ | D174: -0.29 | E174: 7.55 | F174: 7.68 | G174: 7.68 | H174: 7.3 | I174: 37
A175: 1540 | B175: 喬 福 | C175: ▼ | D175: -0.25 | E175: 21.05 | F175: 21.3 | G175: 21.5 | H175: 21.05 | I175: 185
A176: 1541 | B176: 錩 泰 | C176: ▲ | D176: 0.1 | E176: 12.65 | F176: 12.45 | G176: 12.65 | H176: 12.45 | I176: 30
A177: 1558 | B177: 伸 興 | C177: ▲ | D177: 4 | E177: 122.5 | F177: 119 | G177: 123.5 | H177: 119 | I177: 849
A178: 1560 | B178: 中 砂 | C178: ▲ | D178: 3.4 | E178: 52.4 | F178: 49.5 | G178: 52.4 | H178: 49.5 | I178: 2579
A179: 1565 | B179: 精 華 | C179: ▼ | D179: -7 | E179: 426 | F179: 434 | G179: 438 | H179: 426 | I179: 102
A180: 1566 | B180: 毅 金 | C180: ▲ | D180: 0.45 | E180: 16.25 | F180: 15.85 | G180: 16.45 | H180: 15.8 | I180: 83
A181: 1569 | B181: 濱 川 | C181: ▼ | D181: -0.3 | E181: 50 | F181: 50.3 | G181: 50.8 | H181: 49.7 | I181: 858
A182: 1570 | B182: 力 肯 | C182: ▲ | D182: 0.09 | E182: 9.69 | F182: 9.45 | G182: 9.85 | H182: 9.15 | I182: 124
A183: 1580 | B183: 新 麥 | C183: ▼ | D183: -0.5 | E183: 113 | F183: 115 | G183: 116 | H183: 110 | I183: 1157
A184: 1582 | B184: 信 錦 | C184: ▲ | D184: 0.65 | E184: 47 | F184: 46.35 | G184: 47.4 | H184: 46.35 | I184: 347
A185: 1583 | B185: 程 泰 | C185: ▲ | D185: 0.3 | E185: 38 | F185: 38 | G185: 38.4 | H185: 37.8 | I185: 52
A186: 1584 | B186: 精 剛 | C186: ▲ | D186: 0.7 | E186: 36.2 | F186: 35.6 | G186: 36.4 | H186: 35.5 | I186: 927
A187: 1590 | B187: AIRTAC | C187: ▲ | D187: 1 | E187: 232 | F187: 235 | G187: 235.5 | H187: 229 | I187: 473
A188: 1603 | B188: 華 電 | C188: ▲ | D188: 0.15 | E188: 10.8 | F188: 10.65 | G188: 10.95 | H188: 10.55 | I188: 1076
A189: 1604 | B189: 聲 寶 | C189: ▲ | D189: 0.12 | E189: 9.91 | F189: 9.81 | G189: 10.15 | H189: 9.76 | I189: 6898
A190: 1605 | B190: 華 新 | C190: ▼ | D190: -0.05 | E190: 14.25 | F190: 14.4 | G190: 14.45 | H190: 14.1 | I190: 13521
A191: 1608 | B191: 華 榮 | C191: ▲ | D191: 0.05 | E191: 10.5 | F191: 10.5 | G191: 10.6 | H191: 10.45 | I191: 1066
A192: 1609 | B192: 大 亞 | C192: ▲ | D192: 0.11 | E192: 9.53 | F192: 9.47 | G192: 9.55 | H192: 9.43 | I192: 2664
A193: 1611 | B193: 中 電 | C193: ▼ | D193: -0.15 | E193: 24.85 | F193: 25.3 | G193: 25.35 | H193: 24.65 | I193: 2181
A194: 1612 | B194: 宏 泰 | C194: ▲ | D194: 0.05 | E194: 13.15 | F194: 13.1 | G194: 13.2 | H194: 13.1 | I194: 494
A195: 1613 | B195: 台 一 | C195: ▼ | D195: -0.14 | E195: 8.57 | F195: 8.75 | G195: 8.75 | H195: 8.49 | I195: 1523
A196: 1614 | B196: 三洋電 | C196: ▲ | D196: 0.4 | E196: 33.4 | F196: 33 | G196: 33.5 | H196: 33 | I196: 134
A197: 1615 | B197: 大 山 | C197: ▼ | D197: -0.1 | E197: 14.65 | F197: 14.75 | G197: 14.9 | H197: 14.6 | I197: 90
A198: 1616 | B198: 億 泰 | C198: ▲ | D198: 0.03 | E198: 6.23 | F198: 6.2 | G198: 6.29 | H198: 6.2 | I198: 331
A199: 1617 | B199: 榮 星 | D199: 0 | E199: 13.15 | F199: 13.15 | G199: 13.35 | H199: 13.05 | I199: 301
A200: 1618 | B200: 合 機 | C200: ▲ | D200: 0.05 | E200: 16.2 | F200: 16.15 | G200: 16.3 | H200: 16.1 | I200: 369
A201: 1701 | B201: 中 化 | C201: ▼ | D201: -0.1 | E201: 24.75 | F201: 24.85 | G201: 24.95 | H201: 24.7 | I201: 3064
... 1226 more rows

Sheet 費率
A1: 券商手續費率 | B1: =D1/1000000 -> 0.001425 | D1: 1425 | F1: 買賣方式
A2: 證券交易稅率 | B2: =D2/1000 -> 0.003 | D2: 3 | F2: 普通
A3: 上市融資成數 | B3: =D3/100 -> 0.6 | D3: 60 | F3: 融資
A4: 上櫃融資成數 | B4: =D4/100 -> 0.5 | D4: 50 | F4: 融券
A5: 上市融券成數 | B5: =D5/100 -> 0.9 | D5: 90
A6: 上櫃融券成數 | B6: =D6/100 -> 0.9 | D6: 90
A7: 融資利率 | B7: =D7/10000 -> 0.0665 | D7: 665
A8: 融券手續費率 | B8: =D8/10000 -> 0.0008 | D8: 8
A9: 擔保品保證金利率 | B9: =D9/1000 -> 0.003 | D9: 3

Sheet 交易紀錄
A1: 編號 | B1: 日期 | C1: 股票代號 | D1: 股票名稱 | E1: 買賣方式 | F1: 買入股數 | G1: 買入單價 | H1: 賣出股數 | I1: 賣出單價 | J1: 總價 | K1: 手續費 | L1: 證交稅 | M1: 融資自備款 | N1: 融資金額 | O1: 融資利息費用 | P1: 融券手續費 | Q1: 融券利息收入 | R1: 買入總成本 | S1: 保證金 | T1: (融券擔保品)賣出淨額 | V1: 買賣方式 | W1: 買入股數
A2: 2330-1 | B2: 2011-06-05 | C2: 2330 | D2: =IF(C2="","",VLOOKUP(C2,股票收盤資料區,2,FALSE)) -> 台積電 | E2: 融資 | F2: 23000 | G2: 40 | J2: =IF(C2="","",F2*G2+H2*I2) -> 920000 | K2: =IF(C2="","",J2*券商手續費率) -> 1311 | L2: =IF(C2="","",IF(H2>0,J2*證券交易稅率,"")) ->  | M2: =IF(C2="","",IF(AND(E2="融資",F2>0),J2-N2,"")) -> 368000 | N2: =IF(C2="","",IF(AND(E2="融資",F2>0),1000*INT(J2*IF(ISNA(VLOOKUP(C2,上櫃代號,1,FALSE)),上市融資成數,上櫃融資成數)/1000),"")) -> 552000 | O2: =IF(C2="","",IF(AND(E2="融資",H2>0),H2/VLOOKUP(A2,交易內容,6,0)*VLOOKUP(A2,交易內容,14,0)*融資利率*IF(B2-VLOOKUP(A2,交易內容,2,0)<2,0,B2-VLOOKUP(A2,交易內容,2,0))/365,"")) ->  | P2: =IF(C2="","",IF(AND(E2="融券",H2>0),J2*融券手續費率,"")) ->  | Q2: =IF(C2="","",IF(AND(E2="融券",F2>0),F2/VLOOKUP(A2,交易內容,8,0)*(VLOOKUP(A2,交易內容,19,0)+VLOOKUP(A2,交易內容,20,0))*擔保品保證金利率*IF(B2-VLOOKUP(A2,交易內容,2,0)<2,0,B2-VLOOKUP(A2,交易內容,2,0))/365,"")) ->  | R2: =IF(C2="","",IF(AND(E2="融券",F2>0),J2+K2-Q2,IF(F2>0,J2+K2,""))) -> 921311 | S2: =IF(C2="","",IF(AND(E2="融券",H2>0),J2*IF(ISNA(VLOOKUP(C2,上櫃代號,1,0)),上市融券成數,上櫃融券成數),"")) ->  | T2: =IF(C2="","",IF(H2>0,IF(E2="融券",J2-K2-L2-P2,IF(E2="融資",J2-K2-L2-O2,J2-K2-L2)),"")) ->  | V2: 普通 | W2: >0
A3: 2330-1 | B3: 2011-06-07 | C3: 2330 | D3: 台積電 | E3: 融資 | H3: 10000 | I3: 41 | J3: =IF(C3="","",F3*G3+H3*I3) -> 410000 | K3: 584.25 | L3: 1230 | M3: =IF(C3="","",IF(AND(E3="融資",F3>0),J3-N3,"")) ->  | O3: 87.45205479 | R3: =IF(C3="","",IF(AND(E3="融券",F3>0),J3+K3-Q3,IF(F3>0,J3+K3,""))) ->  | T3: =IF(C3="","",IF(H3>0,IF(E3="融券",J3-K3-L3-P3,IF(E3="融資",J3-K3-L3-O3,J3-K3-L3)),"")) -> 408098.2979
A4: 2330-1 | B4: 2011-06-09 | C4: 2330 | D4: 台積電 | E4: 融資 | H4: 13000 | I4: 43 | J4: 559000 | K4: =IF(C4="","",J4*券商手續費率) -> 796.575 | L4: 1677 | M4: =IF(C4="","",IF(AND(E4="融資",F4>0),J4-N4,"")) ->  | O4: 227.3753425 | T4: =IF(C4="","",IF(H4>0,IF(E4="融券",J4-K4-L4-P4,IF(E4="融資",J4-K4-L4-O4,J4-K4-L4)),"")) -> 556299.0497
A5: 2301-0 | B5: 2011-06-11 | C5: 2301 | D5: 光寶科 | E5: 普通 | F5: 2000 | G5: 30 | J5: 60000 | K5: 85.5 | R5: 60085.5 | T5: =IF(C5="","",IF(H5>0,IF(E5="融券",J5-K5-L5-P5,IF(E5="融資",J5-K5-L5-O5,J5-K5-L5)),"")) -> 
A6: 2301-0 | B6: 2011-06-13 | C6: 2301 | D6: 光寶科 | E6: 普通 | H6: 1000 | I6: 32 | J6: =IF(C6="","",F6*G6+H6*I6) -> 32000 | K6: 45.6 | L6: 96 | T6: 31858.4
A7: 1101-1 | B7: 2011-06-15 | C7: 1101 | D7: 台 泥 | E7: 融資 | F7: 18000 | G7: 33 | J7: 594000 | K7: 846.45 | M7: 238000 | N7: 356000 | R7: 594846.45
A8: 1104-1 | B8: 2011-05-17 | C8: 1104 | D8: 環 泥 | E8: 融券 | H8: 9000 | I8: 10 | J8: 90000 | K8: 128.25 | L8: 270 | P8: 72 | S8: 81000 | T8: 89529.75
A9: 1104-1 | B9: 2011-05-19 | C9: 1104 | D9: 環 泥 | E9: 融券 | F9: 9000 | G9: 12 | J9: 108000 | K9: 153.9 | Q9: 2.803228767 | R9: 108151.0968
A10: 2801-1 | B10: 2011-05-21 | C10: 2801 | D10: 彰 銀 | E10: 融資 | F10: 14000 | G10: 17 | J10: 238000 | K10: 339.15 | M10: 96000 | N10: 142000 | R10: 238339.15
A11: 2801-1 | B11: 2011-05-23 | C11: 2801 | D11: 彰 銀 | E11: 融資 | H11: 14000 | I11: 25 | J11: 350000 | K11: 498.75 | L11: 1050 | O11: 51.74246575 | T11: 348399.5075
A12: 1217-1 | B12: 2011-05-25 | C12: 1217 | D12: 愛之味 | E12: 融券 | H12: 5000 | I12: 8 | J12: 40000 | K12: 57 | L12: 120 | P12: 32 | S12: 36000 | T12: 39791
A13: 2002-1 | B13: 2011-05-27 | C13: 2002 | D13: 中 鋼 | E13: 融券 | H13: 10000 | I13: 31 | J13: 310000 | K13: 441.75 | L13: 930 | P13: 248 | S13: 279000 | T13: 308380.25
A14: 2356-0 | B14: 2011-05-29 | C14: 2356 | D14: 英業達 | E14: 普通 | F14: 21000 | G14: 17 | J14: 357000 | K14: 508.725 | R14: 357508.725
A15: 5301-0 | B15: 2011-05-31 | C15: 5301 | D15: 祥裕電 | E15: 普通 | F15: 8000 | G15: 7 | J15: 56000 | K15: 79.8 | R15: 56079.8
A16: 2356-0 | B16: 2011-06-02 | C16: 2356 | D16: 英業達 | E16: 普通 | H16: 3000 | I16: 18 | J16: 54000 | K16: 76.95 | L16: 162 | T16: 53761.05
A17: 2801-2 | B17: 2011-06-04 | C17: 2801 | D17: 彰 銀 | E17: 融資 | F17: 15000 | G17: 17 | J17: 255000 | K17: 363.375 | M17: 102000 | N17: 153000 | R17: 255363.375
A18: 2303-1 | B18: 2011-06-06 | C18: 2303 | D18: 聯 電 | E18: 融券 | H18: 9000 | I18: 20 | J18: 180000 | K18: 256.5 | L18: 540 | P18: 144 | S18: 162000 | T18: 179059.5
A19: 2002-1 | B19: 2011-06-08 | C19: 2002 | D19: 中 鋼 | E19: 融券 | F19: 5000 | G19: 25 | J19: 125000 | K19: 178.125 | Q19: 28.96669726 | R19: 125149.1583
A20: 2301-0 | B20: 2011-06-10 | C20: 2301 | D20: 光寶科 | E20: 普通 | F20: 15000 | G20: 31 | J20: 465000 | K20: 662.625 | R20: 465662.625
A21: 2330-2 | B21: 2011-06-12 | C21: 2330 | D21: 台積電 | E21: 融資 | F21: 13000 | G21: 42 | J21: 546000 | K21: 778.05 | M21: 219000 | N21: 327000 | R21: 546778.05
A22: 2330-2 | B22: 2011-06-14 | C22: 2330 | D22: 台積電 | E22: 融資 | H22: 13000 | I22: 42.5 | J22: 552500 | K22: 787.3125 | L22: 1657.5 | O22: 119.1534247 | T22: 549936.0341
A23: 2330-0 | B23: 2011-06-16 | C23: 2330 | D23: 台積電 | E23: 普通 | F23: 3000 | G23: 43 | J23: 129000 | K23: 183.825 | R23: 129183.825
A24: 2303-1 | B24: 2011-06-18 | C24: 2303 | D24: 聯 電 | E24: 融券 | F24: 5000 | G24: 18 | J24: 90000 | K24: 128.25 | Q24: 18.68819178 | R24: 90109.56181
A25: 2303-0 | B25: 2011-06-20 | C25: 2303 | D25: 聯 電 | E25: 普通 | F25: 10000 | G25: 22 | J25: 220000 | K25: 313.5 | R25: 220313.5
A26: 2303-0 | B26: 2011-06-22 | C26: 2303 | D26: 聯 電 | E26: 普通 | H26: 5000 | I26: 20 | J26: =IF(C26="","",F26*G26+H26*I26) -> 100000 | K26: 142.5 | L26: 300 | T26: 99557.5
D27: =IF(C27="","",VLOOKUP(C27,股票代碼區,2,FALSE)) ->  | J27: =IF(C27="","",F27*G27+H27*I27) ->  | K27: =IF(C27="","",J27*券商手續費率) ->  | L27: =IF(C27="","",IF(H27>0,J27*證券交易稅率,"")) ->  | P27: =IF(C27="","",IF(AND(E27="融券",H27>0),J27*融券手續費率,"")) -> 
N34: =IF(C34="","",IF(AND(E34="融資",F34>0),1000*INT(J34*IF(ISNA(VLOOKUP(C34,上櫃代號,1,FALSE)),上市融資成數,上櫃融資成數)/1000),"")) ->  | O34: =IF(C34="","",IF(AND(E34="融資",H34>0),H34/VLOOKUP(A34,交易內容,6,0)*VLOOKUP(A34,交易內容,14,0)*融資利率*IF(B34-VLOOKUP(A34,交易內容,2,0)<2,0,B34-VLOOKUP(A34,交易內容,2,0))/365,"")) ->  | Q34: =IF(C34="","",IF(AND(E34="融券",F34>0),F34/VLOOKUP(A34,交易內容,8,0)*(VLOOKUP(A34,交易內容,19,0)+VLOOKUP(A34,交易內容,20,0))*擔保品保證金利率*IF(B34-VLOOKUP(A34,交易內容,2,0)<2,0,B34-VLOOKUP(A34,交易內容,2,0))/365,"")) ->  | S34: =IF(C34="","",IF(AND(E34="融券",H34>0),J34*IF(ISNA(VLOOKUP(C34,上櫃代號,1,0)),上市融券成數,上櫃融券成數),"")) -> 
J51: =DSUM(交易內容,10,V1:W2) -> 1287000 | M51: =SUM(M2:M50) -> 1023000 | Q51: =IF(C51="","",IF(E51<>"券買","",(F51*VLOOKUP(VLOOKUP(A51,費率!$Q$21:$T$29,4,FALSE),交易內容,7,FALSE)*IF(ISERROR(VLOOKUP(C51,上櫃代號,1,FALSE)),上市融券成數,上櫃融券成數)+((F51/VLOOKUP(VLOOKUP(A51,費率!$Q$21:$T$29,4,FALSE),交易內容,6,FALSE))*VLOOKUP(VLOOKUP(A51,費率!$Q$21:$T$29,4,FALSE),交易內容,18,FALSE)))*擔保金保證金利率*IF(B51-VLOOKUP(A51,費率!$Q$21:$T$29,4,FALSE)<2,1,(B51-VLOOKUP(A51,費率!$Q$21:$T$29,4,FALSE)))/365)) ->  | S51: =SUM(S2:S50) -> 558000 | T51: =J51+M51+S51 -> 2868000
Q52: =IF(C52="","",IF(E52<>"券買","",(F52*VLOOKUP(VLOOKUP(A52,費率!$Q$21:$T$29,4,FALSE),交易內容,7,FALSE)*IF(ISERROR(VLOOKUP(C52,上櫃代號,1,FALSE)),上市融券成數,上櫃融券成數)+((F52/VLOOKUP(VLOOKUP(A52,費率!$Q$21:$T$29,4,FALSE),交易內容,6,FALSE))*VLOOKUP(VLOOKUP(A52,費率!$Q$21:$T$29,4,FALSE),交易內容,18,FALSE)))*擔保金保證金利率*IF(B52-VLOOKUP(A52,費率!$Q$21:$T$29,4,FALSE)<2,1,(B52-VLOOKUP(A52,費率!$Q$21:$T$29,4,FALSE)))/365)) -> 
Q53: =IF(C53="","",IF(E53<>"券買","",(F53*VLOOKUP(VLOOKUP(A53,費率!$Q$21:$T$29,4,FALSE),交易內容,7,FALSE)*IF(ISERROR(VLOOKUP(C53,上櫃代號,1,FALSE)),上市融券成數,上櫃融券成數)+((F53/VLOOKUP(VLOOKUP(A53,費率!$Q$21:$T$29,4,FALSE),交易內容,6,FALSE))*VLOOKUP(VLOOKUP(A53,費率!$Q$21:$T$29,4,FALSE),交易內容,18,FALSE)))*擔保金保證金利率*IF(B53-VLOOKUP(A53,費率!$Q$21:$T$29,4,FALSE)<2,1,(B53-VLOOKUP(A53,費率!$Q$21:$T$29,4,FALSE)))/365)) -> 
Q54: =IF(C54="","",IF(E54<>"券買","",(F54*VLOOKUP(VLOOKUP(A54,費率!$Q$21:$T$29,4,FALSE),交易內容,7,FALSE)*IF(ISERROR(VLOOKUP(C54,上櫃代號,1,FALSE)),上市融券成數,上櫃融券成數)+((F54/VLOOKUP(VLOOKUP(A54,費率!$Q$21:$T$29,4,FALSE),交易內容,6,FALSE))*VLOOKUP(VLOOKUP(A54,費率!$Q$21:$T$29,4,FALSE),交易內容,18,FALSE)))*擔保金保證金利率*IF(B54-VLOOKUP(A54,費率!$Q$21:$T$29,4,FALSE)<2,1,(B54-VLOOKUP(A54,費率!$Q$21:$T$29,4,FALSE)))/365)) -> 
Q55: =IF(C55="","",IF(E55<>"券買","",(F55*VLOOKUP(VLOOKUP(A55,費率!$Q$21:$T$29,4,FALSE),交易內容,7,FALSE)*IF(ISERROR(VLOOKUP(C55,上櫃代號,1,FALSE)),上市融券成數,上櫃融券成數)+((F55/VLOOKUP(VLOOKUP(A55,費率!$Q$21:$T$29,4,FALSE),交易內容,6,FALSE))*VLOOKUP(VLOOKUP(A55,費率!$Q$21:$T$29,4,FALSE),交易內容,18,FALSE)))*擔保金保證金利率*IF(B55-VLOOKUP(A55,費率!$Q$21:$T$29,4,FALSE)<2,1,(B55-VLOOKUP(A55,費率!$Q$21:$T$29,4,FALSE)))/365)) -> 
Q56: =IF(C56="","",IF(E56<>"券買","",(F56*VLOOKUP(VLOOKUP(A56,費率!$Q$21:$T$29,4,FALSE),交易內容,7,FALSE)*IF(ISERROR(VLOOKUP(C56,上櫃代號,1,FALSE)),上市融券成數,上櫃融券成數)+((F56/VLOOKUP(VLOOKUP(A56,費率!$Q$21:$T$29,4,FALSE),交易內容,6,FALSE))*VLOOKUP(VLOOKUP(A56,費率!$Q$21:$T$29,4,FALSE),交易內容,18,FALSE)))*擔保金保證金利率*IF(B56-VLOOKUP(A56,費率!$Q$21:$T$29,4,FALSE)<2,1,(B56-VLOOKUP(A56,費率!$Q$21:$T$29,4,FALSE)))/365)) -> 
Q57: =IF(C57="","",IF(E57<>"券買","",(F57*VLOOKUP(VLOOKUP(A57,費率!$Q$21:$T$29,4,FALSE),交易內容,7,FALSE)*IF(ISERROR(VLOOKUP(C57,上櫃代號,1,FALSE)),上市融券成數,上櫃融券成數)+((F57/VLOOKUP(VLOOKUP(A57,費率!$Q$21:$T$29,4,FALSE),交易內容,6,FALSE))*VLOOKUP(VLOOKUP(A57,費率!$Q$21:$T$29,4,FALSE),交易內容,18,FALSE)))*擔保金保證金利率*IF(B57-VLOOKUP(A57,費率!$Q$21:$T$29,4,FALSE)<2,1,(B57-VLOOKUP(A57,費率!$Q$21:$T$29,4,FALSE)))/365)) -> 
Q58: =IF(C58="","",IF(E58<>"券買","",(F58*VLOOKUP(VLOOKUP(A58,費率!$Q$21:$T$29,4,FALSE),交易內容,7,FALSE)*IF(ISERROR(VLOOKUP(C58,上櫃代號,1,FALSE)),上市融券成數,上櫃融券成數)+((F58/VLOOKUP(VLOOKUP(A58,費率!$Q$21:$T$29,4,FALSE),交易內容,6,FALSE))*VLOOKUP(VLOOKUP(A58,費率!$Q$21:$T$29,4,FALSE),交易內容,18,FALSE)))*擔保金保證金利率*IF(B58-VLOOKUP(A58,費率!$Q$21:$T$29,4,FALSE)<2,1,(B58-VLOOKUP(A58,費率!$Q$21:$T$29,4,FALSE)))/365)) -> 
Q59: =IF(C59="","",IF(E59<>"券買","",(F59*VLOOKUP(VLOOKUP(A59,費率!$Q$21:$T$29,4,FALSE),交易內容,7,FALSE)*IF(ISERROR(VLOOKUP(C59,上櫃代號,1,FALSE)),上市融券成數,上櫃融券成數)+((F59/VLOOKUP(VLOOKUP(A59,費率!$Q$21:$T$29,4,FALSE),交易內容,6,FALSE))*VLOOKUP(VLOOKUP(A59,費率!$Q$21:$T$29,4,FALSE),交易內容,18,FALSE)))*擔保金保證金利率*IF(B59-VLOOKUP(A59,費率!$Q$21:$T$29,4,FALSE)<2,1,(B59-VLOOKUP(A59,費率!$Q$21:$T$29,4,FALSE)))/365)) -> 
Q60: =IF(C60="","",IF(E60<>"券買","",(F60*VLOOKUP(VLOOKUP(A60,費率!$Q$21:$T$29,4,FALSE),交易內容,7,FALSE)*IF(ISERROR(VLOOKUP(C60,上櫃代號,1,FALSE)),上市融券成數,上櫃融券成數)+((F60/VLOOKUP(VLOOKUP(A60,費率!$Q$21:$T$29,4,FALSE),交易內容,6,FALSE))*VLOOKUP(VLOOKUP(A60,費率!$Q$21:$T$29,4,FALSE),交易內容,18,FALSE)))*擔保金保證金利率*IF(B60-VLOOKUP(A60,費率!$Q$21:$T$29,4,FALSE)<2,1,(B60-VLOOKUP(A60,費率!$Q$21:$T$29,4,FALSE)))/365)) -> 
Q61: =IF(C61="","",IF(E61<>"券買","",(F61*VLOOKUP(VLOOKUP(A61,費率!$Q$21:$T$29,4,FALSE),交易內容,7,FALSE)*IF(ISERROR(VLOOKUP(C61,上櫃代號,1,FALSE)),上市融券成數,上櫃融券成數)+((F61/VLOOKUP(VLOOKUP(A61,費率!$Q$21:$T$29,4,FALSE),交易內容,6,FALSE))*VLOOKUP(VLOOKUP(A61,費率!$Q$21:$T$29,4,FALSE),交易內容,18,FALSE)))*擔保金保證金利率*IF(B61-VLOOKUP(A61,費率!$Q$21:$T$29,4,FALSE)<2,1,(B61-VLOOKUP(A61,費率!$Q$21:$T$29,4,FALSE)))/365)) -> 
Q62: =IF(C62="","",IF(E62<>"券買","",(F62*VLOOKUP(VLOOKUP(A62,費率!$Q$21:$T$29,4,FALSE),交易內容,7,FALSE)*IF(ISERROR(VLOOKUP(C62,上櫃代號,1,FALSE)),上市融券成數,上櫃融券成數)+((F62/VLOOKUP(VLOOKUP(A62,費率!$Q$21:$T$29,4,FALSE),交易內容,6,FALSE))*VLOOKUP(VLOOKUP(A62,費率!$Q$21:$T$29,4,FALSE),交易內容,18,FALSE)))*擔保金保證金利率*IF(B62-VLOOKUP(A62,費率!$Q$21:$T$29,4,FALSE)<2,1,(B62-VLOOKUP(A62,費率!$Q$21:$T$29,4,FALSE)))/365)) -> 
Q63: =IF(C63="","",IF(E63<>"券買","",(F63*VLOOKUP(VLOOKUP(A63,費率!$Q$21:$T$29,4,FALSE),交易內容,7,FALSE)*IF(ISERROR(VLOOKUP(C63,上櫃代號,1,FALSE)),上市融券成數,上櫃融券成數)+((F63/VLOOKUP(VLOOKUP(A63,費率!$Q$21:$T$29,4,FALSE),交易內容,6,FALSE))*VLOOKUP(VLOOKUP(A63,費率!$Q$21:$T$29,4,FALSE),交易內容,18,FALSE)))*擔保金保證金利率*IF(B63-VLOOKUP(A63,費率!$Q$21:$T$29,4,FALSE)<2,1,(B63-VLOOKUP(A63,費率!$Q$21:$T$29,4,FALSE)))/365)) -> 
Q64: =IF(C64="","",IF(E64<>"券買","",(F64*VLOOKUP(VLOOKUP(A64,費率!$Q$21:$T$29,4,FALSE),交易內容,7,FALSE)*IF(ISERROR(VLOOKUP(C64,上櫃代號,1,FALSE)),上市融券成數,上櫃融券成數)+((F64/VLOOKUP(VLOOKUP(A64,費率!$Q$21:$T$29,4,FALSE),交易內容,6,FALSE))*VLOOKUP(VLOOKUP(A64,費率!$Q$21:$T$29,4,FALSE),交易內容,18,FALSE)))*擔保金保證金利率*IF(B64-VLOOKUP(A64,費率!$Q$21:$T$29,4,FALSE)<2,1,(B64-VLOOKUP(A64,費率!$Q$21:$T$29,4,FALSE)))/365)) -> 
Q65: =IF(C65="","",IF(E65<>"券買","",(F65*VLOOKUP(VLOOKUP(A65,費率!$Q$21:$T$29,4,FALSE),交易內容,7,FALSE)*IF(ISERROR(VLOOKUP(C65,上櫃代號,1,FALSE)),上市融券成數,上櫃融券成數)+((F65/VLOOKUP(VLOOKUP(A65,費率!$Q$21:$T$29,4,FALSE),交易內容,6,FALSE))*VLOOKUP(VLOOKUP(A65,費率!$Q$21:$T$29,4,FALSE),交易內容,18,FALSE)))*擔保金保證金利率*IF(B65-VLOOKUP(A65,費率!$Q$21:$T$29,4,FALSE)<2,1,(B65-VLOOKUP(A65,費率!$Q$21:$T$29,4,FALSE)))/365)) -> 
Q66: =IF(C66="","",IF(E66<>"券買","",(F66*VLOOKUP(VLOOKUP(A66,費率!$Q$21:$T$29,4,FALSE),交易內容,7,FALSE)*IF(ISERROR(VLOOKUP(C66,上櫃代號,1,FALSE)),上市融券成數,上櫃融券成數)+((F66/VLOOKUP(VLOOKUP(A66,費率!$Q$21:$T$29,4,FALSE),交易內容,6,FALSE))*VLOOKUP(VLOOKUP(A66,費率!$Q$21:$T$29,4,FALSE),交易內容,18,FALSE)))*擔保金保證金利率*IF(B66-VLOOKUP(A66,費率!$Q$21:$T$29,4,FALSE)<2,1,(B66-VLOOKUP(A66,費率!$Q$21:$T$29,4,FALSE)))/365)) -> 
Q67: =IF(C67="","",IF(E67<>"券買","",(F67*VLOOKUP(VLOOKUP(A67,費率!$Q$21:$T$29,4,FALSE),交易內容,7,FALSE)*IF(ISERROR(VLOOKUP(C67,上櫃代號,1,FALSE)),上市融券成數,上櫃融券成數)+((F67/VLOOKUP(VLOOKUP(A67,費率!$Q$21:$T$29,4,FALSE),交易內容,6,FALSE))*VLOOKUP(VLOOKUP(A67,費率!$Q$21:$T$29,4,FALSE),交易內容,18,FALSE)))*擔保金保證金利率*IF(B67-VLOOKUP(A67,費率!$Q$21:$T$29,4,FALSE)<2,1,(B67-VLOOKUP(A67,費率!$Q$21:$T$29,4,FALSE)))/365)) -> 
Q68: =IF(C68="","",IF(E68<>"券買","",(F68*VLOOKUP(VLOOKUP(A68,費率!$Q$21:$T$29,4,FALSE),交易內容,7,FALSE)*IF(ISERROR(VLOOKUP(C68,上櫃代號,1,FALSE)),上市融券成數,上櫃融券成數)+((F68/VLOOKUP(VLOOKUP(A68,費率!$Q$21:$T$29,4,FALSE),交易內容,6,FALSE))*VLOOKUP(VLOOKUP(A68,費率!$Q$21:$T$29,4,FALSE),交易內容,18,FALSE)))*擔保金保證金利率*IF(B68-VLOOKUP(A68,費率!$Q$21:$T$29,4,FALSE)<2,1,(B68-VLOOKUP(A68,費率!$Q$21:$T$29,4,FALSE)))/365)) -> 
Q69: =IF(C69="","",IF(E69<>"券買","",(F69*VLOOKUP(VLOOKUP(A69,費率!$Q$21:$T$29,4,FALSE),交易內容,7,FALSE)*IF(ISERROR(VLOOKUP(C69,上櫃代號,1,FALSE)),上市融券成數,上櫃融券成數)+((F69/VLOOKUP(VLOOKUP(A69,費率!$Q$21:$T$29,4,FALSE),交易內容,6,FALSE))*VLOOKUP(VLOOKUP(A69,費率!$Q$21:$T$29,4,FALSE),交易內容,18,FALSE)))*擔保金保證金利率*IF(B69-VLOOKUP(A69,費率!$Q$21:$T$29,4,FALSE)<2,1,(B69-VLOOKUP(A69,費率!$Q$21:$T$29,4,FALSE)))/365)) -> 
Q70: =IF(C70="","",IF(E70<>"券買","",(F70*VLOOKUP(VLOOKUP(A70,費率!$Q$21:$T$29,4,FALSE),交易內容,7,FALSE)*IF(ISERROR(VLOOKUP(C70,上櫃代號,1,FALSE)),上市融券成數,上櫃融券成數)+((F70/VLOOKUP(VLOOKUP(A70,費率!$Q$21:$T$29,4,FALSE),交易內容,6,FALSE))*VLOOKUP(VLOOKUP(A70,費率!$Q$21:$T$29,4,FALSE),交易內容,18,FALSE)))*擔保金保證金利率*IF(B70-VLOOKUP(A70,費率!$Q$21:$T$29,4,FALSE)<2,1,(B70-VLOOKUP(A70,費率!$Q$21:$T$29,4,FALSE)))/365)) -> 
Q71: =IF(C71="","",IF(E71<>"券買","",(F71*VLOOKUP(VLOOKUP(A71,費率!$Q$21:$T$29,4,FALSE),交易內容,7,FALSE)*IF(ISERROR(VLOOKUP(C71,上櫃代號,1,FALSE)),上市融券成數,上櫃融券成數)+((F71/VLOOKUP(VLOOKUP(A71,費率!$Q$21:$T$29,4,FALSE),交易內容,6,FALSE))*VLOOKUP(VLOOKUP(A71,費率!$Q$21:$T$29,4,FALSE),交易內容,18,FALSE)))*擔保金保證金利率*IF(B71-VLOOKUP(A71,費率!$Q$21:$T$29,4,FALSE)<2,1,(B71-VLOOKUP(A71,費率!$Q$21:$T$29,4,FALSE)))/365)) -> 
Q72: =IF(C72="","",IF(E72<>"券買","",(F72*VLOOKUP(VLOOKUP(A72,費率!$Q$21:$T$29,4,FALSE),交易內容,7,FALSE)*IF(ISERROR(VLOOKUP(C72,上櫃代號,1,FALSE)),上市融券成數,上櫃融券成數)+((F72/VLOOKUP(VLOOKUP(A72,費率!$Q$21:$T$29,4,FALSE),交易內容,6,FALSE))*VLOOKUP(VLOOKUP(A72,費率!$Q$21:$T$29,4,FALSE),交易內容,18,FALSE)))*擔保金保證金利率*IF(B72-VLOOKUP(A72,費率!$Q$21:$T$29,4,FALSE)<2,1,(B72-VLOOKUP(A72,費率!$Q$21:$T$29,4,FALSE)))/365)) -> 
Q73: =IF(C73="","",IF(E73<>"券買","",(F73*VLOOKUP(VLOOKUP(A73,費率!$Q$21:$T$29,4,FALSE),交易內容,7,FALSE)*IF(ISERROR(VLOOKUP(C73,上櫃代號,1,FALSE)),上市融券成數,上櫃融券成數)+((F73/VLOOKUP(VLOOKUP(A73,費率!$Q$21:$T$29,4,FALSE),交易內容,6,FALSE))*VLOOKUP(VLOOKUP(A73,費率!$Q$21:$T$29,4,FALSE),交易內容,18,FALSE)))*擔保金保證金利率*IF(B73-VLOOKUP(A73,費率!$Q$21:$T$29,4,FALSE)<2,1,(B73-VLOOKUP(A73,費率!$Q$21:$T$29,4,FALSE)))/365)) -> 
Q74: =IF(C74="","",IF(E74<>"券買","",(F74*VLOOKUP(VLOOKUP(A74,費率!$Q$21:$T$29,4,FALSE),交易內容,7,FALSE)*IF(ISERROR(VLOOKUP(C74,上櫃代號,1,FALSE)),上市融券成數,上櫃融券成數)+((F74/VLOOKUP(VLOOKUP(A74,費率!$Q$21:$T$29,4,FALSE),交易內容,6,FALSE))*VLOOKUP(VLOOKUP(A74,費率!$Q$21:$T$29,4,FALSE),交易內容,18,FALSE)))*擔保金保證金利率*IF(B74-VLOOKUP(A74,費率!$Q$21:$T$29,4,FALSE)<2,1,(B74-VLOOKUP(A74,費率!$Q$21:$T$29,4,FALSE)))/365)) -> 
Q75: =IF(C75="","",IF(E75<>"券買","",(F75*VLOOKUP(VLOOKUP(A75,費率!$Q$21:$T$29,4,FALSE),交易內容,7,FALSE)*IF(ISERROR(VLOOKUP(C75,上櫃代號,1,FALSE)),上市融券成數,上櫃融券成數)+((F75/VLOOKUP(VLOOKUP(A75,費率!$Q$21:$T$29,4,FALSE),交易內容,6,FALSE))*VLOOKUP(VLOOKUP(A75,費率!$Q$21:$T$29,4,FALSE),交易內容,18,FALSE)))*擔保金保證金利率*IF(B75-VLOOKUP(A75,費率!$Q$21:$T$29,4,FALSE)<2,1,(B75-VLOOKUP(A75,費率!$Q$21:$T$29,4,FALSE)))/365)) -> 
Q76: =IF(C76="","",IF(E76<>"券買","",(F76*VLOOKUP(VLOOKUP(A76,費率!$Q$21:$T$29,4,FALSE),交易內容,7,FALSE)*IF(ISERROR(VLOOKUP(C76,上櫃代號,1,FALSE)),上市融券成數,上櫃融券成數)+((F76/VLOOKUP(VLOOKUP(A76,費率!$Q$21:$T$29,4,FALSE),交易內容,6,FALSE))*VLOOKUP(VLOOKUP(A76,費率!$Q$21:$T$29,4,FALSE),交易內容,18,FALSE)))*擔保金保證金利率*IF(B76-VLOOKUP(A76,費率!$Q$21:$T$29,4,FALSE)<2,1,(B76-VLOOKUP(A76,費率!$Q$21:$T$29,4,FALSE)))/365)) -> 
Q77: =IF(C77="","",IF(E77<>"券買","",(F77*VLOOKUP(VLOOKUP(A77,費率!$Q$21:$T$29,4,FALSE),交易內容,7,FALSE)*IF(ISERROR(VLOOKUP(C77,上櫃代號,1,FALSE)),上市融券成數,上櫃融券成數)+((F77/VLOOKUP(VLOOKUP(A77,費率!$Q$21:$T$29,4,FALSE),交易內容,6,FALSE))*VLOOKUP(VLOOKUP(A77,費率!$Q$21:$T$29,4,FALSE),交易內容,18,FALSE)))*擔保金保證金利率*IF(B77-VLOOKUP(A77,費率!$Q$21:$T$29,4,FALSE)<2,1,(B77-VLOOKUP(A77,費率!$Q$21:$T$29,4,FALSE)))/365)) -> 
Q78: =IF(C78="","",IF(E78<>"券買","",(F78*VLOOKUP(VLOOKUP(A78,費率!$Q$21:$T$29,4,FALSE),交易內容,7,FALSE)*IF(ISERROR(VLOOKUP(C78,上櫃代號,1,FALSE)),上市融券成數,上櫃融券成數)+((F78/VLOOKUP(VLOOKUP(A78,費率!$Q$21:$T$29,4,FALSE),交易內容,6,FALSE))*VLOOKUP(VLOOKUP(A78,費率!$Q$21:$T$29,4,FALSE),交易內容,18,FALSE)))*擔保金保證金利率*IF(B78-VLOOKUP(A78,費率!$Q$21:$T$29,4,FALSE)<2,1,(B78-VLOOKUP(A78,費率!$Q$21:$T$29,4,FALSE)))/365)) -> 
Q79: =IF(C79="","",IF(E79<>"券買","",(F79*VLOOKUP(VLOOKUP(A79,費率!$Q$21:$T$29,4,FALSE),交易內容,7,FALSE)*IF(ISERROR(VLOOKUP(C79,上櫃代號,1,FALSE)),上市融券成數,上櫃融券成數)+((F79/VLOOKUP(VLOOKUP(A79,費率!$Q$21:$T$29,4,FALSE),交易內容,6,FALSE))*VLOOKUP(VLOOKUP(A79,費率!$Q$21:$T$29,4,FALSE),交易內容,18,FALSE)))*擔保金保證金利率*IF(B79-VLOOKUP(A79,費率!$Q$21:$T$29,4,FALSE)<2,1,(B79-VLOOKUP(A79,費率!$Q$21:$T$29,4,FALSE)))/365)) -> 
Q80: =IF(C80="","",IF(E80<>"券買","",(F80*VLOOKUP(VLOOKUP(A80,費率!$Q$21:$T$29,4,FALSE),交易內容,7,FALSE)*IF(ISERROR(VLOOKUP(C80,上櫃代號,1,FALSE)),上市融券成數,上櫃融券成數)+((F80/VLOOKUP(VLOOKUP(A80,費率!$Q$21:$T$29,4,FALSE),交易內容,6,FALSE))*VLOOKUP(VLOOKUP(A80,費率!$Q$21:$T$29,4,FALSE),交易內容,18,FALSE)))*擔保金保證金利率*IF(B80-VLOOKUP(A80,費率!$Q$21:$T$29,4,FALSE)<2,1,(B80-VLOOKUP(A80,費率!$Q$21:$T$29,4,FALSE)))/365)) -> 

Sheet 損益彙算
K1: 結算日期 | L1: 2011-07-24
L2: .
E3: 資料
A4: 編號 | B4: 股票代號 | C4: 股票名稱 | D4: 買賣方式 | E4: 買入股數 | F4: 賣出股數 | G4: 買入總成本 | H4: 賣出淨額 | I4: 未平倉股數 | J4: 收盤股價 | K4: 持股市值 | L4: 損益小計
A5: 1101-1 | B5: 1101 | C5: 台 泥 | D5: 融資 | E5: 18000 | G5: 594846.45 | H5: 0 | I5: 18000 | J5: =IF(A5="","",VLOOKUP(B5,股票收盤資料區,5,0)) -> 48.4 | K5: =IF(A5="","",I5*J5) -> 871200 | L5: =IF(A5="","",IF(D5="普通",H5+K5*(1-券商手續費率-證券交易稅率)-G5,IF(D5="融資",H5+K5*(1-券商手續費率-證券交易稅率)-G5-I5/VLOOKUP(A5,交易內容,6,0)*VLOOKUP(A5,交易內容,14,0)*融資利率*IF($L$1-VLOOKUP(A5,交易內容,2,0)<2,0,$L$1-VLOOKUP(A5,交易內容,2,0))/365,H5-K5*(1+券商手續費率)-G5+I5/VLOOKUP(A5,交易內容,8,0)*(VLOOKUP(A5,交易內容,19,0)+VLOOKUP(A5,交易內容,20,0))*擔保品保證金利率*IF($L$1-VLOOKUP(A5,交易內容,2,0)<2,0,$L$1-VLOOKUP(A5,交易內容,2,0))/365))) -> 269968.9393
A6: 1104-1 | B6: 1104 | C6: 環 泥 | D6: 融券 | E6: 9000 | F6: 9000 | G6: 108151.0968 | H6: 89529.75 | I6: 0 | J6: 18.35 | K6: =IF(A6="","",I6*J6) -> 0 | L6: -18621.34677
A7: 1217-1 | B7: 1217 | C7: 愛之味 | D7: 融券 | F7: 5000 | G7: 0 | H7: 39791 | I7: 5000 | J7: 14 | K7: 70000 | L7: -30271.37362
A8: 2002-1 | B8: 2002 | C8: 中 鋼 | D8: 融券 | E8: 5000 | F8: 10000 | G8: 125149.1583 | H8: 308380.25 | I8: 5000 | J8: 30.55 | K8: 152750 | L8: 30403.42865
A9: 2301-0 | B9: 2301 | C9: 光寶科 | D9: 普通 | E9: 17000 | F9: 1000 | G9: 525748.125 | H9: 31858.4 | I9: 16000 | J9: 37.45 | K9: 599200 | L9: 102658.815
A10: 2303-0 | B10: 2303 | C10: 聯 電 | D10: 普通 | E10: 10000 | F10: 5000 | G10: 220313.5 | H10: 99557.5 | I10: 5000 | J10: 13.4 | K10: 67000 | L10: -54052.475
A11: 2303-1 | B11: 2303 | C11: 聯 電 | D11: 融券 | E11: 5000 | F11: 9000 | G11: 90109.56181 | H11: 179059.5 | I11: 4000 | J11: 13.4 | K11: 53600 | L11: 35333.36041
A12: 2330-0 | B12: 2330 | C12: 台積電 | D12: 普通 | E12: 3000 | G12: 129183.825 | H12: 0 | I12: 3000 | J12: 72 | K12: 216000 | L12: 85860.375
A13: 2330-1 | B13: 2330 | C13: 台積電 | D13: 融資 | E13: 23000 | F13: 23000 | G13: 921311 | H13: 964397.3476 | I13: 0 | J13: 72 | K13: 0 | L13: 43086.3476
A14: 2330-2 | B14: 2330 | C14: 台積電 | D14: 融資 | E14: 13000 | F14: 13000 | G14: 546778.05 | H14: 549936.0341 | I14: 0 | J14: 72 | K14: 0 | L14: 3157.984075
A15: 2356-0 | B15: 2356 | C15: 英業達 | D15: 普通 | E15: 21000 | F15: 3000 | G15: 357508.725 | H15: 53761.05 | I15: 18000 | J15: 14.2 | K15: 255600 | L15: -49278.705
A16: 2801-1 | B16: 2801 | C16: 彰 銀 | D16: 融資 | E16: 14000 | F16: 14000 | G16: 238339.15 | H16: 348399.5075 | I16: 0 | J16: 25.05 | K16: 0 | L16: 110060.3575
A17: 2801-2 | B17: 2801 | C17: 彰 銀 | D17: 融資 | E17: 15000 | G17: 255363.375 | H17: 0 | I17: 15000 | J17: 25.05 | K17: 375750 | L17: 117330.1641
A18: 5301-0 | B18: 5301 | C18: 祥裕電 | D18: 普通 | E18: 8000 | G18: 56079.8 | H18: 0 | I18: 8000 | J18: =IF(A18="","",VLOOKUP(B18,股票收盤資料區,5,0)) -> 0 | K18: 0 | L18: -56079.8
K19: =IF(A19="","",I19*J19) -> 
J30: =IF(LEN(A30)>2,VLOOKUP(B30,股票收盤資料區,5,0),IF(AND(A30="",J29>0),J29,"")) ->  | K30: 損益彙總 | L30: =SUM(L5:L29) -> 589556.0713
K31: 總報酬率 | L31: =L30/交易紀錄!T51 -> 0.2055634837
